[Event "Marshall CC FIDE Premier January 2024"]
[Site "New York"]
[Date "2024.01.07"]
[Round "4.2"]
[White "Bonin, Jay"]
[Black "Brain, Logan"]
[Result "1/2-1/2"]
[ECO "D85"]
[WhiteElo "2166"]
[BlackElo "2111"]
[Annotator "RC"]
[PlyCount "78"]
[EventDate "2024.01.05"]
[EventType "swiss"]
[EventCountry "USA"]
[SourceTitle "playchess.com"]
[Source "ChessBase"]
[SourceQuality "1"]
[TimeControl "5400+30"]

1. d4 {[%emt 0:00:09]} Nf6 {[%emt 0:00:02]} 2. Nf3 {[%emt 0:00:06]} g6 {[%emt 0:00:02]} 3. c4 {[%emt 0:00:10]} Bg7 {[%emt 0:00:05]} 4. Nc3 {[%emt 0:00:03]} d5 {[%emt 0:00:02]} 5. cxd5 {[%emt 0:00:25]} Nxd5 {[%emt 0:00:04]} 6. e4 {[%emt 0:00:05]} Nxc3 {[%emt 0:00:02]} 7. bxc3 {[%emt 0:00:04]} c5 {[%emt 0:00:07]} 8. Bb5+ {[%emt 0:00:04]} Nc6 {[%emt 0:00:09]} 9. O-O {[%emt 0:00:07]} O-O {[%emt 0:01:08]} 10. Be3 {[%emt 0:01:17]} Qa5 {[%emt 0:02:51]} 11. Qa4 {[%emt 0:01:11]} Qxa4 {[%emt 0:07:33]} 12. Bxa4 {[%emt 0:00:07]} cxd4 {[%emt 0:00:39]} 13. cxd4 {[%emt 0:00:07]} Bd7 {[%emt 0:00:45]} 14. Rab1 {[%emt 0:01:10]} b6 {[%emt 0:01:53]} 15. Rfc1 {[%emt 0:00:43]} Rac8 {[%emt 0:00:48]} 16. d5 {[%emt 0:03:11]} Ne5 {[%emt 0:04:26]} 17. Nxe5 {[%emt 0:04:11]} Bxa4 {[%emt 0:00:07]} 18. Nc6 {[%emt 0:00:03]} Bxc6 {[%emt 0:06:01]} 19. Rxc6 {[%emt 0:01:04]} Rxc6 {[%emt 0:00:55]} 20. dxc6 {[%emt 0:00:06]} Rc8 {[%emt 0:00:38]} 21. Rd1 {[%emt 0:03:35]} Be5 {[%emt 0:03:06]} 22. Rd7 {[%emt 0:02:32]} Bd6 {[%emt 0:13:56]} 23. e5 {[%emt 0:04:14]} Bxe5 {[%emt 0:02:21]} 24. Rxe7 {[%emt 0:00:07]} Bd6 {[%emt 0:01:56]} 25. Rd7 {[%emt 0:02:23]} Rxc6 {[%emt 0:05:32]} 26. Bh6 {[%emt 0:00:06]} Bc7 {[%emt 0:05:01]} 27. Kf1 {[%emt 0:01:21]} g5 {[%emt 0:01:08]} 28. Bxg5 {[%emt 0:00:18]} Kg7 {[%emt 0:00:09]} 29. h4 {[%emt 0:02:48]} b5 {[%emt 0:02:08]} 30. Be3 {[%emt 0:00:34]} a5 {[%emt 0:01:48]} 31. Bd4+ {[%emt 0:03:15]} Kf8 {[%emt 0:00:13]} 32. Rd5 {[%emt 0:01:32]} Bb6 {[%emt 0:01:31]} 33. Bxb6 {[%emt 0:07:08]} Rxb6 {[%emt 0:00:03]} 34. Rd8+ {[%emt 0:00:36]} Ke7 {[%emt 0:00:22]} 35. Ra8 {[%emt 0:00:05]} a4 {[%emt 0:00:05]} 36. Ke2 {[%emt 0:01:12]} Rc6 {[%emt 0:01:26]} 37. Kd2 {[%emt 0:00:40]} Rd6+ {[%emt 0:01:58]} 38. Kc3 {[%emt 0:02:13]} Rc6+ {[%emt 0:00:40]} 39. Kd2 {[%emt 0:01:43]} Rd6+ {[%emt 0:00:06]} 1/2-1/2

[Event "Marshall CC FIDE Premier January 2024"]
[Site "New York"]
[Date "2024.01.07"]
[Round "4.3"]
[White "Lin, Bryan Enming"]
[Black "Hebbar, Eshaan"]
[Result "0-1"]
[ECO "C47"]
[WhiteElo "2102"]
[BlackElo "2018"]
[Annotator "RC"]
[PlyCount "120"]
[EventDate "2024.01.05"]
[EventType "swiss"]
[EventCountry "USA"]
[SourceTitle "playchess.com"]
[Source "ChessBase"]
[SourceQuality "1"]
[TimeControl "5400+30"]

1. e4 {[%emt 0:00:03]} e5 {[%emt 0:00:07]} 2. Nf3 {[%emt 0:00:08]} Nc6 {[%emt 0:00:07]} 3. Nc3 {[%emt 0:00:32]} Nf6 {[%emt 0:00:10]} 4. d4 {[%emt 0:00:47]} exd4 {[%emt 0:00:31]} 5. Nxd4 {[%emt 0:00:08]} Bb4 {[%emt 0:04:01]} 6. Nxc6 {[%emt 0:00:47]} bxc6 {[%emt 0:00:16]} 7. Bd3 {[%emt 0:00:08]} d5 {[%emt 0:07:14]} 8. exd5 {[%emt 0:00:21]} cxd5 {[%emt 0:00:12]} 9. O-O {[%emt 0:00:10]} O-O {[%emt 0:00:10]} 10. h3 {[%emt 0:00:06]} h6 {[%emt 0:00:24]} 11. Qf3 {[%emt 0:00:14]} c6 {[%emt 0:01:57]} 12. Bf4 {[%emt 0:00:11]} Re8 {[%emt 0:05:23]} 13. Ne2 {[%emt 0:01:11]} Bd6 {[%emt 0:05:33]} 14. Rad1 {[%emt 0:00:46]} Be6 {[%emt 0:04:03]} 15. b3 {[%emt 0:00:56]} Bxf4 {[%emt 0:08:07]} 16. Nxf4 {[%emt 0:04:45]} Qc7 {[%emt 0:00:18]} 17. c4 {[%emt 0:00:50]} Rad8 {[%emt 0:09:26]} 18. Rfe1 {[%emt 0:02:34]} d4 {[%emt 0:04:04]} 19. c5 {[%emt 0:03:23]} Bc8 {[%emt 0:08:22]} 20. Bc4 {[%emt 0:02:21]} Re5 {[%emt 0:14:32]} 21. Ng6 {[%emt 0:02:00]} Rxc5 {[%emt 0:03:43]} 22. Re7 {[%emt 0:01:18]} Qd6 {[%emt 0:03:20]} 23. Bxf7+ {[%emt 0:02:03]} Kh7 {[%emt 0:00:01]} 24. Ree1 {[%emt 0:20:00]} d3 {[%emt 0:07:23]} 25. Nf4 {[%emt 0:01:18]} d2 {[%emt 0:01:25]} 26. Bg6+ {[%emt 0:00:44]} Kh8 {[%emt 0:00:01]} 27. Re3 {[%emt 0:01:11]} Rc1 {[%emt 0:04:29]} 28. Rd3 {[%emt 0:02:00]} Qc7 {[%emt 0:02:13]} 29. R3xd2 {[%emt 0:02:15]} Rxd2 {[%emt 0:05:04]} 30. Rxc1 {[%emt 0:00:34]} Bd7 {[%emt 0:00:10]} 31. Bc2 {[%emt 0:02:59]} Qd6 {[%emt 0:00:35]} 32. Nd3 {[%emt 0:01:04]} Qd4 {[%emt 0:01:10]} 33. Nf4 {[%emt 0:01:50]} Qb2 {[%emt 0:00:46]} 34. Ng6+ {[%emt 0:02:18]} Kg8 {[%emt 0:00:04]} 35. Ne7+ {[%emt 0:00:11]} Kf8 {[%emt 0:00:20]} 36. Ng6+ {[%emt 0:01:54]} Kf7 {[%emt 0:00:07]} 37. Re1 {[%emt 0:04:18]} Qxc2 {[%emt 0:00:12]} 38. Ne5+ {[%emt 0:03:16]} Kg8 {[%emt 0:00:05]} 39. Nc4 {[%emt 0:01:55]} Rd3 {[%emt 0:00:09]} 40. Qf4 {[%emt 0:00:09]} Rd1 {[%emt 0:00:34]} 41. Rxd1 {[%emt 0:00:07]} Qxd1+ {[%emt 0:00:02]} 42. Kh2 {[%emt 0:00:06]} Kh7 {[%emt 0:00:34]} 43. Qe3 {[%emt 0:00:35]} a6 {[%emt 0:00:49]} 44. Ne5 {[%emt 0:00:12]} Qd6 {[%emt 0:00:40]} 45. g3 {[%emt 0:01:03]} Bf5 {[%emt 0:00:08]} 46. Nc4 {[%emt 0:00:21]} Qd3 {[%emt 0:00:23]} 47. Qf4 {[%emt 0:00:51]} Be4 {[%emt 0:00:41]} 48. Nd2 {[%emt 0:00:42]} Bd5 {[%emt 0:00:10]} 49. g4 {[%emt 0:00:06]} Qe2 {[%emt 0:00:48]} 50. Qf5+ {[%emt 0:00:19]} Kh8 {[%emt 0:00:01]} 51. Qf4 {[%emt 0:00:43]} Qe1 {[%emt 0:00:08]} 52. f3 {[%emt 0:00:26]} Qf2+ {[%emt 0:00:14]} 53. Kh1 {[%emt 0:00:04]} a5 {[%emt 0:00:27]} 54. Qb8+ {[%emt 0:00:19]} Ng8 {[%emt 0:00:44]} 55. Qf4 {[%emt 0:00:04]} Ne7 {[%emt 0:00:20]} 56. Ne4 {[%emt 0:01:05]} Qf1+ {[%emt 0:00:35]} 57. Kh2 {[%emt 0:00:03]} Ng6 {[%emt 0:00:48]} 58. Qf5 {[%emt 0:00:07]} Nh4 {[%emt 0:00:29]} 59. Qf8+ {[%emt 0:00:08]} Kh7 {[%emt 0:01:02]} 60. Kg3 {[%emt 0:00:28]} Bxe4 {[%emt 0:04:39]} 0-1

[Event "Marshall CC FIDE Premier January 2024"]
[Site "New York"]
[Date "2024.01.07"]
[Round "4.4"]
[White "Marsh, James J"]
[Black "Oh, James Y"]
[Result "0-1"]
[ECO "E05"]
[WhiteElo "1987"]
[BlackElo "2015"]
[Annotator "RC"]
[PlyCount "64"]
[EventDate "2024.01.05"]
[EventType "swiss"]
[EventCountry "USA"]
[SourceTitle "playchess.com"]
[Source "ChessBase"]
[SourceQuality "1"]
[TimeControl "5400+30"]

1. Nf3 {[%emt 0:00:30]} d5 {[%emt 0:11:46]} 2. g3 {[%emt 0:00:00]} Nf6 {[%emt 0:00:12]} 3. Bg2 {[%emt 0:00:00]} e6 {[%emt 0:00:23]} 4. O-O {[%emt 0:00:01]} Be7 {[%emt 0:00:16]} 5. c4 {[%emt 0:00:10]} O-O {[%emt 0:00:06]} 6. d4 {[%emt 0:00:16]} dxc4 {[%emt 0:00:11]} 7. Qc2 {[%emt 0:00:07]} b5 {[%emt 0:00:10]} 8. a4 {[%emt 0:00:37]} b4 {[%emt 0:00:06]} 9. Nfd2 {[%emt 0:00:54]} Nd5 {[%emt 0:00:44]} 10. Nxc4 {[%emt 0:01:00]} c5 {[%emt 0:00:36]} 11. dxc5 {[%emt 0:03:26]} Bxc5 {[%emt 0:00:25]} 12. Ne3 {[%emt 0:04:39]} Bxe3 {[%emt 0:09:10]} 13. Bxe3 {[%emt 0:00:21]} Ba6 {[%emt 0:00:19]} 14. Rd1 {[%emt 0:02:49]} Nd7 {[%emt 0:01:48]} 15. Bxd5 {[%emt 0:05:14]} exd5 {[%emt 0:00:51]} 16. Rd4 {[%emt 0:00:07]} Rc8 {[%emt 0:05:25]} 17. Qd1 {[%emt 0:00:16]} Qe7 {[%emt 0:01:26]} 18. Nd2 {[%emt 0:02:01]} Nb6 {[%emt 0:05:17]} 19. Nf1 {[%emt 0:05:30]} Bb7 {[%emt 0:13:11]} 20. a5 {[%emt 0:02:06]} Nc4 {[%emt 0:00:09]} 21. b3 {[%emt 0:00:14]} Na3 {[%emt 0:00:11]} 22. Rc1 {[%emt 0:09:34]} Rxc1 {[%emt 0:01:43]} 23. Qxc1 {[%emt 0:05:44]} Nb5 {[%emt 0:01:15]} 24. Rd2 {[%emt 0:04:39]} Nc3 {[%emt 0:08:38]} 25. Qb2 {[%emt 0:03:43]} Ba6 {[%emt 0:01:01]} 26. Bd4 {[%emt 0:00:36]} Nxe2+ {[%emt 0:02:13]} 27. Kg2 {[%emt 0:00:18]} Nc3 {[%emt 0:07:02]} 28. Bxc3 {[%emt 0:05:24]} Qe4+ {[%emt 0:01:47]} 29. f3 {[%emt 0:00:08]} Bxf1+ {[%emt 0:00:04]} 30. Kf2 {[%emt 0:01:53]} bxc3 {[%emt 0:00:03]} 31. Qxc3 {[%emt 0:00:10]} Qb1 {[%emt 0:00:05]} 32. Qd4 {[%emt 0:03:34]} Ba6 {[%emt 0:01:06]} 0-1

[Event "Marshall CC FIDE Premier January 2024"]
[Site "New York"]
[Date "2024.01.07"]
[Round "4.5"]
[White "Li, Michael"]
[Black "Roberts, Aston"]
[Result "1-0"]
[ECO "B31"]
[WhiteElo "2016"]
[BlackElo "1768"]
[Annotator "RC"]
[PlyCount "114"]
[EventDate "2024.01.05"]
[EventType "swiss"]
[EventCountry "USA"]
[SourceTitle "playchess.com"]
[Source "ChessBase"]
[SourceQuality "1"]
[TimeControl "5400+30"]

1. e4 {[%emt 0:00:03]} c5 {[%emt 0:00:05]} 2. Nf3 {[%emt 0:00:05]} Nc6 {[%emt 0:00:04]} 3. Bb5 {[%emt 0:00:05]} g6 {[%emt 0:00:04]} 4. Bxc6 {[%emt 0:00:03]} dxc6 {[%emt 0:00:03]} 5. h3 {[%emt 0:00:06]} e5 {[%emt 0:00:09]} 6. d3 {[%emt 0:00:05]} f6 {[%emt 0:00:14]} 7. a4 {[%emt 0:01:06]} a5 {[%emt 0:00:49]} 8. Be3 {[%emt 0:01:30]} b6 {[%emt 0:03:25]} 9. Qd2 {[%emt 0:04:39]} Qc7 {[%emt 0:02:38]} 10. Na3 {[%emt 0:01:04]} Be6 {[%emt 0:03:57]} 11. b3 {[%emt 0:02:51]} Bg7 {[%emt 0:10:12]} 12. O-O {[%emt 0:02:51]} g5 {[%emt 0:02:50]} 13. Nh2 {[%emt 0:02:14]} Ne7 {[%emt 0:04:06]} 14. Nc4 {[%emt 0:05:25]} h6 {[%emt 0:03:26]} 15. c3 {[%emt 0:06:18]} Rd8 {[%emt 0:03:14]} 16. Rfd1 {[%emt 0:15:49]} f5 {[%emt 0:02:07]} 17. f3 {[%emt 0:01:41]} fxe4 {[%emt 0:13:58]} 18. fxe4 {[%emt 0:00:06]} Ng6 {[%emt 0:01:03]} 19. Qe2 {[%emt 0:10:30]} Nf4 {[%emt 0:02:37]} 20. Bxf4 {[%emt 0:00:32]} exf4 {[%emt 0:00:02]} 21. e5 {[%emt 0:03:23]} O-O {[%emt 0:03:40]} 22. Re1 {[%emt 0:09:01]} Bxc4 {[%emt 0:12:26]} 23. bxc4 {[%emt 0:01:21]} Rde8 {[%emt 0:04:08]} 24. Nf3 {[%emt 0:02:34]} g4 {[%emt 0:02:15]} 25. hxg4 {[%emt 0:00:31]} Qc8 {[%emt 0:00:04]} 26. d4 {[%emt 0:05:07]} Qxg4 {[%emt 0:06:17]} 27. Nh2 {[%emt 0:02:30]} Qxe2 {[%emt 0:04:12]} 28. Rxe2 {[%emt 0:00:01]} cxd4 {[%emt 0:00:12]} 29. cxd4 {[%emt 0:00:01]} c5 {[%emt 0:00:17]} 30. Nf3 {[%emt 0:00:34]} cxd4 {[%emt 0:02:07]} 31. Rd1 {[%emt 0:00:29]} Rd8 {[%emt 0:02:09]} 32. Rxd4 {[%emt 0:00:52]} Rxd4 {[%emt 0:01:00]} 33. Nxd4 {[%emt 0:00:02]} Rc8 {[%emt 0:00:12]} 34. Nf5 {[%emt 0:00:48]} Bf8 {[%emt 0:05:09]} 35. e6 {[%emt 0:04:34]} Bc5+ {[%emt 0:00:08]} 36. Kh2 {[%emt 0:01:51]} Re8 {[%emt 0:00:31]} 37. Kh3 {[%emt 0:00:50]} Kh7 {[%emt 0:02:43]} 38. Kg4 {[%emt 0:00:10]} Kg6 {[%emt 0:00:35]} 39. e7 {[%emt 0:00:29]} h5+ {[%emt 0:00:55]} 40. Kxf4 {[%emt 0:00:09]} Kf6 {[%emt 0:00:06]} 41. Re5 {[%emt 0:02:15]} Bb4 {[%emt 0:01:22]} 42. Ke4 {[%emt 0:03:34]} Kf7 {[%emt 0:03:41]} 43. Kd5 {[%emt 0:04:45]} Kf6 {[%emt 0:00:01]} 44. Nd6 {[%emt 0:01:25]} Rxe7 {[%emt 0:00:23]} 45. Rxe7 {[%emt 0:00:02]} Kxe7 {[%emt 0:00:01]} 46. Nc8+ {[%emt 0:00:10]} Kd7 {[%emt 0:01:09]} 47. Nxb6+ {[%emt 0:00:03]} Kc7 {[%emt 0:00:06]} 48. c5 {[%emt 0:00:01]} Be1 {[%emt 0:01:44]} 49. Nc4 {[%emt 0:00:13]} h4 {[%emt 0:00:40]} 50. Nd6 {[%emt 0:00:24]} Bg3 {[%emt 0:00:29]} 51. Nc4 {[%emt 0:01:31]} Be1 {[%emt 0:00:08]} 52. Ne5 {[%emt 0:00:46]} Bg3 {[%emt 0:00:23]} 53. Nf3 {[%emt 0:00:10]} Bf2 {[%emt 0:00:17]} 54. Kc4 {[%emt 0:00:10]} Kd7 {[%emt 0:00:41]} 55. Kb5 {[%emt 0:00:56]} Ke6 {[%emt 0:00:16]} 56. c6 {[%emt 0:01:20]} Kd6 {[%emt 0:00:05]} 57. Nd2 {[%emt 0:00:09]} Kd5 {[%emt 0:03:25]} 1-0

[Event "Marshall CC FIDE Premier January 2024"]
[Site "New York"]
[Date "2024.01.08"]
[Round "5.1"]
[White "Brain, Logan"]
[Black "Bortnyk, Mykola"]
[Result "1/2-1/2"]
[ECO "B75"]
[WhiteElo "2111"]
[BlackElo "2421"]
[Annotator "RC"]
[PlyCount "73"]
[EventDate "2024.01.05"]
[EventType "swiss"]
[EventCountry "USA"]
[SourceTitle "playchess.com"]
[Source "ChessBase"]
[SourceQuality "1"]
[TimeControl "5400+30"]

1. e4 {[%emt 0:02:26]} c5 {[%emt 0:00:31]} 2. Nf3 {[%emt 0:00:06]} d6 {[%emt 0:00:05]} 3. d4 {[%emt 0:00:02]} Nf6 {[%emt 0:00:05]} 4. Nc3 {[%emt 0:00:02]} cxd4 {[%emt 0:00:05]} 5. Nxd4 {[%emt 0:00:03]} g6 {[%emt 0:00:04]} 6. Be3 {[%emt 0:00:03]} Bg7 {[%emt 0:00:07]} 7. f3 {[%emt 0:00:06]} a6 {[%emt 0:00:04]} 8. Qd2 {[%emt 0:00:59]} h5 {[%emt 0:00:07]} 9. Be2 {[%emt 0:01:24]} Nc6 {[%emt 0:01:13]} 10. O-O {[%emt 0:03:31]} O-O {[%emt 0:00:19]} 11. f4 {[%emt 0:07:19]} Nxd4 {[%emt 0:01:55]} 12. Bxd4 {[%emt 0:00:18]} b5 {[%emt 0:01:16]} 13. f5 {[%emt 0:07:53]} Bb7 {[%emt 0:02:44]} 14. fxg6 {[%emt 0:02:28]} fxg6 {[%emt 0:00:13]} 15. Qe3 {[%emt 0:02:08]} e5 {[%emt 0:03:25]} 16. Bb6 {[%emt 0:00:32]} Qe7 {[%emt 0:00:10]} 17. Rad1 {[%emt 0:01:20]} Kh7 {[%emt 0:01:22]} 18. a3 {[%emt 0:02:51]} Rac8 {[%emt 0:01:37]} 19. Qd3 {[%emt 0:02:04]} Rc6 {[%emt 0:08:07]} 20. Be3 {[%emt 0:02:04]} Qe6 {[%emt 0:00:09]} 21. Nd5 {[%emt 0:02:10]} Rc4 {[%emt 0:00:45]} 22. b3 {[%emt 0:02:01]} Rcc8 {[%emt 0:03:20]} 23. c4 {[%emt 0:02:12]} bxc4 {[%emt 0:00:49]} 24. bxc4 {[%emt 0:00:04]} Bxd5 {[%emt 0:00:08]} 25. cxd5 {[%emt 0:01:51]} Qd7 {[%emt 0:00:06]} 26. Rb1 {[%emt 0:01:10]} a5 {[%emt 0:02:27]} 27. Rb5 {[%emt 0:02:56]} Qc7 {[%emt 0:01:45]} 28. Bb6 {[%emt 0:05:23]} Qc2 {[%emt 0:00:11]} 29. Qxc2 {[%emt 0:09:21]} Rxc2 {[%emt 0:00:03]} 30. Bf3 {[%emt 0:00:51]} Rb8 {[%emt 0:02:45]} 31. Rfb1 {[%emt 0:00:39]} Ra2 {[%emt 0:01:14]} 32. Bc7 {[%emt 0:01:07]} Rxb5 {[%emt 0:00:14]} 33. Rxb5 {[%emt 0:00:05]} g5 {[%emt 0:00:24]} 34. Bxd6 {[%emt 0:06:10]} g4 {[%emt 0:03:42]} 35. Rxa5 {[%emt 0:00:17]} gxf3 {[%emt 0:01:38]} 36. gxf3 {[%emt 0:00:05]} Ra1+ {[%emt 0:03:51]} 37. Kg2 {[%emt 0:00:26]} 1/2-1/2

[Event "Marshall CC FIDE Premier January 2024"]
[Site "New York"]
[Date "2024.01.08"]
[Round "5.2"]
[White "Zeltsan, Joseph"]
[Black "Li, Michael"]
[Result "1-0"]
[ECO "D74"]
[WhiteElo "2439"]
[BlackElo "2016"]
[Annotator "RC"]
[PlyCount "63"]
[EventDate "2024.01.05"]
[EventType "swiss"]
[EventCountry "USA"]
[SourceTitle "playchess.com"]
[Source "ChessBase"]
[SourceQuality "1"]
[TimeControl "5400+30"]

1. Nf3 {[%emt 0:01:36]} d5 {[%emt 0:00:06]} 2. g3 {[%emt 0:00:03]} g6 {[%emt 0:00:04]} 3. Bg2 {[%emt 0:00:05]} Bg7 {[%emt 0:00:05]} 4. d4 {[%emt 0:01:22]} Nf6 {[%emt 0:00:07]} 5. O-O {[%emt 0:00:03]} O-O {[%emt 0:00:06]} 6. c4 {[%emt 0:00:01]} c6 {[%emt 0:00:01]} 7. cxd5 {[%emt 0:00:03]} Nxd5 {[%emt 0:00:18]} 8. e4 {[%emt 0:00:54]} Nb6 {[%emt 0:00:05]} 9. h3 {[%emt 0:00:19]} N8d7 {[%emt 0:00:20]} 10. Nc3 {[%emt 0:00:19]} e5 {[%emt 0:02:15]} 11. Bg5 {[%emt 0:02:22]} Qe8 {[%emt 0:03:30]} 12. d5 {[%emt 0:00:08]} Nf6 {[%emt 0:01:43]} 13. Qb3 {[%emt 0:02:32]} cxd5 {[%emt 0:11:19]} 14. exd5 {[%emt 0:00:04]} Bf5 {[%emt 0:02:05]} 15. Rfe1 {[%emt 0:01:39]} Nfd7 {[%emt 0:02:19]} 16. g4 {[%emt 0:09:27]} Bd3 {[%emt 0:00:29]} 17. Rad1 {[%emt 0:00:07]} Bc4 {[%emt 0:01:57]} 18. Qa3 {[%emt 0:00:48]} f5 {[%emt 0:02:11]} 19. Nd2 {[%emt 0:08:12]} Ba6 {[%emt 0:01:43]} 20. d6 {[%emt 0:00:59]} fxg4 {[%emt 0:02:51]} 21. hxg4 {[%emt 0:00:52]} Qf7 {[%emt 0:03:12]} 22. Nce4 {[%emt 0:03:09]} h6 {[%emt 0:01:23]} 23. Qh3 {[%emt 0:07:14]} Nc5 {[%emt 0:16:54]} 24. Nxc5 {[%emt 0:01:35]} Qxf2+ {[%emt 0:00:07]} 25. Kh1 {[%emt 0:00:05]} Qxc5 {[%emt 0:00:16]} 26. Ne4 {[%emt 0:01:56]} Qb4 {[%emt 0:01:43]} 27. Bxh6 {[%emt 0:01:19]} Rf7 {[%emt 0:02:49]} 28. Ng5 {[%emt 0:01:42]} Rd7 {[%emt 0:01:04]} 29. Bxg7 {[%emt 0:02:00]} Rxg7 {[%emt 0:00:58]} 30. d7 {[%emt 0:00:19]} Rd8 {[%emt 0:02:16]} 31. Rxe5 {[%emt 0:00:24]} Qf8 {[%emt 0:03:01]} 32. Re6 {[%emt 0:01:58]} 1-0